[Event "*** Titled Tuesday Blitz"]
[Site "Chess.com"]
[Date "2019.05.07"]
[Round "9"]
[White "TregubovP"]
[Black "Gubajdullin"]
[Result "1-0"]
[WhiteElo "2557"]
[BlackElo "2543"]
[TimeControl "180+2"]
[EndTime "15:06:59 PDT"]
[Termination "TregubovP won on time"]

1. d4 {[%clk 0:03:01.9]} 1... Nf6 {[%clk 0:02:58.9]} 2. c4 {[%clk 0:03:02.8]}
2... g6 {[%clk 0:03:00]} 3. g3 {[%clk 0:03:00.8]} 3... Bg7 {[%clk 0:03:01]} 4.
Bg2 {[%clk 0:03:02.2]} 4... O-O {[%clk 0:03:01.8]} 5. Nc3 {[%clk 0:03:03.7]}
5... d6 {[%clk 0:03:02.8]} 6. Nf3 {[%clk 0:03:04.9]} 6... Bf5 {[%clk 0:03:02.1]}
7. O-O {[%clk 0:03:04.6]} 7... Qc8 {[%clk 0:03:03.2]} 8. Re1 {[%clk 0:03:04.5]}
8... Bh3 {[%clk 0:03:02.9]} 9. e4 {[%clk 0:03:04]} 9... Bxg2 {[%clk 0:02:58.6]}
10. Kxg2 {[%clk 0:03:05.2]} 10... c5 {[%clk 0:02:44.1]} 11. e5 {[%clk
0:02:58.6]} 11... dxe5 {[%clk 0:02:38]} 12. dxe5 {[%clk 0:02:59.3]} 12... Nfd7
{[%clk 0:02:33.6]} 13. Bf4 {[%clk 0:02:33.3]} 13... Nb6 {[%clk 0:02:31.9]} 14.
b3 {[%clk 0:02:32.3]} 14... Rd8 {[%clk 0:02:31.7]} 15. Qe2 {[%clk 0:02:31.7]}
15... Nc6 {[%clk 0:02:30.8]} 16. Rad1 {[%clk 0:02:32.5]} 16... Nd4 {[%clk
0:02:31.5]} 17. Qe4 {[%clk 0:02:30.2]} 17... Qc6 {[%clk 0:02:00.6]} 18. Nxd4
{[%clk 0:02:23.5]} 18... cxd4 {[%clk 0:02:00.5]} 19. Nb5 {[%clk 0:02:13]} 19...
d3 {[%clk 0:01:58.6]} 20. Kg1 {[%clk 0:01:54.9]} 20... Rd7 {[%clk 0:01:37.8]}
21. Re3 {[%clk 0:01:11.6]} 21... f5 {[%clk 0:01:04]} 22. Qxc6 {[%clk 0:00:55.4]}
22... bxc6 {[%clk 0:01:04.7]} 23. Nc3 {[%clk 0:00:53.4]} 23... Rad8 {[%clk
0:00:57.1]} 24. h4 {[%clk 0:00:53.7]} 24... h6 {[%clk 0:00:33.9]} 25. Rd2 {[%clk
0:00:54.8]} 25... e6 {[%clk 0:00:32.2]} 26. Nd1 {[%clk 0:00:55.5]} 26... Bf8
{[%clk 0:00:24.7]} 27. Nb2 {[%clk 0:00:56.2]} 27... Ba3 {[%clk 0:00:15.6]} 28.
Rexd3 {[%clk 0:00:54]} 28... Bxb2 {[%clk 0:00:13.8]} 29. Rxd7 {[%clk 0:00:54.8]}
29... Rxd7 {[%clk 0:00:13.7]} 30. Rxb2 {[%clk 0:00:55.9]} 30... Rd1+ {[%clk
0:00:13.6]} 31. Kg2 {[%clk 0:00:56.9]} 31... Nd7 {[%clk 0:00:12.8]} 32. Bxh6
{[%clk 0:00:54.7]} 32... Nxe5 {[%clk 0:00:11.4]} 33. Re2 {[%clk 0:00:54.9]}
33... Ng4 {[%clk 0:00:10.1]} 34. Bg5 {[%clk 0:00:55.2]} 34... Kf7 {[%clk
0:00:09.6]} 35. Rd2 {[%clk 0:00:54.8]} 35... Rxd2 {[%clk 0:00:05.6]} 36. Bxd2
{[%clk 0:00:55.9]} 36... e5 {[%clk 0:00:05.5]} 37. f3 {[%clk 0:00:52.5]} 37...
Nf6 {[%clk 0:00:05.4]} 38. Kf2 {[%clk 0:00:52]} 38... a6 {[%clk 0:00:04.9]} 39.
Bg5 {[%clk 0:00:49]} 39... Nd7 {[%clk 0:00:05.6]} 40. g4 {[%clk 0:00:48.9]}
40... Ke6 {[%clk 0:00:05.3]} 41. h5 {[%clk 0:00:49.3]} 41... gxh5 {[%clk
0:00:03.4]} 42. gxh5 {[%clk 0:00:50.5]} 42... Kf7 {[%clk 0:00:03]} 43. Ke3
{[%clk 0:00:51]} 43... Nc5 {[%clk 0:00:02.4]} 44. f4 {[%clk 0:00:44.3]} 44... e4
{[%clk 0:00:02.3]} 45. b4 {[%clk 0:00:37.7]} 1-0

[Event "*** Titled Tuesday Blitz"]
[Site "Chess.com"]
[Date "2019.05.07"]
[Round "9"]
[White "Taron_Shagbazyan"]
[Black "Vice64"]
[Result "0-1"]
[WhiteElo "2721"]
[BlackElo "2561"]
[TimeControl "180+2"]
[EndTime "15:07:16 PDT"]
[Termination "Vice64 won by resignation"]

1. d4 {[%clk 0:03:01.9]} 1... Nf6 {[%clk 0:02:59.5]} 2. c4 {[%clk 0:03:02.8]}
2... e6 {[%clk 0:03:00.5]} 3. Nc3 {[%clk 0:02:58.4]} 3... Bb4 {[%clk 0:03:00.4]}
4. e3 {[%clk 0:02:56.7]} 4... O-O {[%clk 0:03:00.6]} 5. Bd3 {[%clk 0:02:53.2]}
5... d5 {[%clk 0:03:01]} 6. Nf3 {[%clk 0:02:54]} 6... c5 {[%clk 0:02:59.7]} 7.
O-O {[%clk 0:02:54.3]} 7... cxd4 {[%clk 0:03:00.9]} 8. exd4 {[%clk 0:02:55.1]}
8... dxc4 {[%clk 0:03:02.3]} 9. Bxc4 {[%clk 0:02:57]} 9... b6 {[%clk 0:03:03.6]}
10. Bg5 {[%clk 0:02:57.7]} 10... Bb7 {[%clk 0:03:03.6]} 11. Qe2 {[%clk 0:02:59]}
11... Bxc3 {[%clk 0:02:59.1]} 12. bxc3 {[%clk 0:02:59.6]} 12... Nc6 {[%clk
0:02:55.7]} 13. Bd3 {[%clk 0:02:59.5]} 13... h6 {[%clk 0:02:56.1]} 14. Bh4
{[%clk 0:03:00.1]} 14... Rc8 {[%clk 0:02:55.9]} 15. Rac1 {[%clk 0:03:00]} 15...
Ne7 {[%clk 0:02:52.1]} 16. Bxf6 {[%clk 0:02:58.8]} 16... gxf6 {[%clk 0:02:54]}
17. Nd2 {[%clk 0:02:56.8]} 17... f5 {[%clk 0:02:52.1]} 18. Qh5 {[%clk
0:02:51.2]} 18... Kg7 {[%clk 0:02:49.4]} 19. Rfe1 {[%clk 0:02:22.4]} 19... Ng6
{[%clk 0:02:47.6]} 20. Bf1 {[%clk 0:02:21.2]} 20... Qd5 {[%clk 0:02:42.8]} 21.
Re3 {[%clk 0:02:05.7]} 21... Qxa2 {[%clk 0:02:38.8]} 22. Nf3 {[%clk 0:02:00.4]}
22... Qb2 {[%clk 0:02:34.9]} 23. Rce1 {[%clk 0:01:39.9]} 23... Rxc3 {[%clk
0:02:33.3]} 24. Ne5 {[%clk 0:01:41.3]} 24... Rxe3 {[%clk 0:02:29.2]} 25. Rxe3
{[%clk 0:01:42.2]} 25... Qxd4 {[%clk 0:01:53.3]} 26. Nxg6 {[%clk 0:01:34.9]}
26... fxg6 {[%clk 0:01:55.2]} 27. Qe2 {[%clk 0:01:35.6]} 27... Bd5 {[%clk
0:01:53]} 28. Rg3 {[%clk 0:01:33.6]} 28... Qf6 {[%clk 0:01:52.7]} 29. Qa6 {[%clk
0:01:31.5]} 29... Rf7 {[%clk 0:01:53.4]} 30. h3 {[%clk 0:01:24.5]} 30... f4
{[%clk 0:01:53.2]} 31. Ra3 {[%clk 0:01:21.1]} 31... f3 {[%clk 0:01:53.8]} 32. g3
{[%clk 0:01:20.7]} 32... Qe5 {[%clk 0:01:53.8]} 33. Qc8 {[%clk 0:01:15.2]} 33...
h5 {[%clk 0:01:53.8]} 34. Re3 {[%clk 0:01:12.4]} 34... Qf6 {[%clk 0:01:52.1]}
35. Qb8 {[%clk 0:01:06.6]} 35... h4 {[%clk 0:01:44.7]} 36. g4 {[%clk 0:01:02.1]}
36... Qa1 {[%clk 0:01:45.2]} 37. Qc8 {[%clk 0:00:48.6]} 37... b5 {[%clk
0:01:43.7]} 38. Rc3 {[%clk 0:00:25.2]} 38... Bc4 {[%clk 0:01:35]} 39. Rxc4
{[%clk 0:00:25.6]} 39... bxc4 {[%clk 0:01:35.9]} 40. Qxc4 {[%clk 0:00:27.5]}
40... Qe5 {[%clk 0:01:33.9]} 41. Qa4 {[%clk 0:00:23.4]} 41... a5 {[%clk
0:01:34]} 42. Qe8 {[%clk 0:00:22]} 42... Qd5 {[%clk 0:01:26.1]} 43. Qb8 {[%clk
0:00:18.3]} 43... Qd4 {[%clk 0:01:20.5]} 44. Qb5 {[%clk 0:00:15.7]} 44... a4
{[%clk 0:01:19.7]} 45. Qa5 {[%clk 0:00:15]} 45... e5 {[%clk 0:01:16.2]} 46. Qa6
{[%clk 0:00:11.6]} 46... e4 {[%clk 0:01:16.9]} 47. Bc4 {[%clk 0:00:11.9]} 47...
Rc7 {[%clk 0:01:06.5]} 48. Bf1 {[%clk 0:00:12.7]} 48... e3 {[%clk 0:01:05.7]}
49. fxe3 {[%clk 0:00:13.6]} 49... Qxe3+ {[%clk 0:01:06.7]} 50. Kh1 {[%clk
0:00:15.2]} 50... a3 {[%clk 0:00:59.3]} 51. Qd6 {[%clk 0:00:13.4]} 51... Re7
{[%clk 0:00:59]} 52. Qd5 {[%clk 0:00:11.5]} 52... f2 {[%clk 0:00:58.1]} 53. g5
{[%clk 0:00:06.7]} 53... Qe4+ {[%clk 0:00:58.5]} 54. Qxe4 {[%clk 0:00:07.4]} 0-1

[Event "*** Titled Tuesday Blitz"]
[Site "Chess.com"]
[Date "2019.05.07"]
[Round "9"]
[White "rasmussvane"]
[Black "Chessialist"]
[Result "1-0"]
[WhiteElo "2796"]
[BlackElo "2575"]
[TimeControl "180+2"]
[EndTime "15:07:24 PDT"]
[Termination "rasmussvane won by checkmate"]

1. Nf3 {[%clk 0:03:01.9]} 1... Nf6 {[%clk 0:03:00.7]} 2. g3 {[%clk 0:03:01.8]}
2... b5 {[%clk 0:03:01.4]} 3. Na3 {[%clk 0:03:01.3]} 3... a6 {[%clk 0:03:00.6]}
4. c4 {[%clk 0:03:02.3]} 4... b4 {[%clk 0:03:01.3]} 5. Nc2 {[%clk 0:03:03.9]}
5... e6 {[%clk 0:03:02.9]} 6. Bg2 {[%clk 0:03:05.1]} 6... Bb7 {[%clk 0:03:03.9]}
7. O-O {[%clk 0:03:06.6]} 7... a5 {[%clk 0:03:05.2]} 8. d4 {[%clk 0:03:07.8]}
8... d6 {[%clk 0:03:05.7]} 9. a3 {[%clk 0:03:05.3]} 9... Na6 {[%clk 0:03:03.2]}
10. axb4 {[%clk 0:03:05.4]} 10... Nxb4 {[%clk 0:03:02]} 11. Bd2 {[%clk
0:03:02.3]} 11... c5 {[%clk 0:02:59.9]} 12. d5 {[%clk 0:02:43]} 12... e5 {[%clk
0:02:54.1]} 13. Ne3 {[%clk 0:02:38.9]} 13... g6 {[%clk 0:02:50.3]} 14. Bh3
{[%clk 0:02:36.7]} 14... Bg7 {[%clk 0:02:48.1]} 15. Qa4+ {[%clk 0:02:37.8]}
15... Kf8 {[%clk 0:02:42.7]} 16. Qd1 {[%clk 0:02:19.1]} 16... h6 {[%clk
0:02:36]} 17. Be1 {[%clk 0:02:04.1]} 17... Kg8 {[%clk 0:02:32.1]} 18. Nd2 {[%clk
0:02:05.3]} 18... Kh7 {[%clk 0:02:32.5]} 19. Qb1 {[%clk 0:02:02.5]} 19... Qe7
{[%clk 0:02:15.7]} 20. Ng2 {[%clk 0:02:02.7]} 20... Rhe8 {[%clk 0:02:12.1]} 21.
Ra3 {[%clk 0:02:02.2]} 21... Kg8 {[%clk 0:02:07.9]} 22. e4 {[%clk 0:02:02.5]}
22... Nd7 {[%clk 0:01:59.5]} 23. Qd1 {[%clk 0:02:01.2]} 23... Nb6 {[%clk
0:02:00.2]} 24. Bg4 {[%clk 0:01:52.2]} 24... Bc8 {[%clk 0:01:58.3]} 25. Bxc8
{[%clk 0:01:49.3]} 25... Rexc8 {[%clk 0:01:59.6]} 26. Ne3 {[%clk 0:01:47]} 26...
h5 {[%clk 0:01:52.1]} 27. Rc3 {[%clk 0:01:40.5]} 27... Bh6 {[%clk 0:01:52.1]}
28. Ng2 {[%clk 0:01:39.1]} 28... Bxd2 {[%clk 0:01:51.6]} 29. Bxd2 {[%clk
0:01:39.8]} 29... a4 {[%clk 0:01:52.9]} 30. Qe2 {[%clk 0:01:39.1]} 30... Ra7
{[%clk 0:01:52.7]} 31. Ra1 {[%clk 0:01:37]} 31... Rca8 {[%clk 0:01:53.7]} 32.
Bc1 {[%clk 0:01:33.3]} 32... Ra5 {[%clk 0:01:39.3]} 33. h4 {[%clk 0:01:31]}
33... R8a6 {[%clk 0:01:40.2]} 34. Raa3 {[%clk 0:01:31]} 34... Ra8 {[%clk
0:01:39]} 35. g4 {[%clk 0:01:31.8]} 35... hxg4 {[%clk 0:01:36.1]} 36. Qxg4
{[%clk 0:01:33.7]} 36... Qd7 {[%clk 0:01:35.1]} 37. Qg3 {[%clk 0:01:32]} 37...
Kh7 {[%clk 0:01:29.6]} 38. f4 {[%clk 0:01:33.1]} 38... exf4 {[%clk 0:01:28.2]}
39. Bxf4 {[%clk 0:01:35]} 39... Qe7 {[%clk 0:01:27.9]} 40. Bxd6 {[%clk
0:01:00.7]} 40... Qxe4 {[%clk 0:01:28.8]} 41. Rf3 {[%clk 0:01:02.2]} 41... R8a7
{[%clk 0:01:22.5]} 42. Rae3 {[%clk 0:01:00.8]} 42... Qxc4 {[%clk 0:01:23.6]} 43.
h5 {[%clk 0:00:57.9]} 43... Qxd5 {[%clk 0:01:08.3]} 44. hxg6+ {[%clk 0:00:57.5]}
44... fxg6 {[%clk 0:01:09.5]} 45. Re8 {[%clk 0:00:49.1]} 45... Qd1+ {[%clk
0:00:29]} 46. Rf1 {[%clk 0:00:48]} 46... Qd4+ {[%clk 0:00:29.4]} 47. Kh1 {[%clk
0:00:40.5]} 47... c4 {[%clk 0:00:30.3]} 48. Nf4 {[%clk 0:00:25.8]} 48... Qxd6
{[%clk 0:00:24.7]} 49. Qh4+ {[%clk 0:00:21.1]} 49... Rh5 {[%clk 0:00:25.7]} 50.
Nxh5 {[%clk 0:00:22.4]} 50... Qd5+ {[%clk 0:00:27.2]} 51. Kg1 {[%clk 0:00:22.4]}
51... Qxh5 {[%clk 0:00:28.3]} 52. Re7+ {[%clk 0:00:23]} 52... Rxe7 {[%clk
0:00:28.4]} 53. Qxe7+ {[%clk 0:00:24.9]} 53... Kh6 {[%clk 0:00:29.1]} 54. Qf8+
{[%clk 0:00:26.2]} 54... Kg5 {[%clk 0:00:30.3]} 55. Qf4# {[%clk 0:00:27.4]} 1-0

[Event "*** Titled Tuesday Blitz"]
[Site "Chess.com"]
[Date "2019.05.07"]
[Round "9"]
[White "champ2005"]
[Black "AryanTari"]
[Result "1/2-1/2"]
[WhiteElo "2898"]
[BlackElo "2874"]
[TimeControl "180+2"]
[EndTime "15:07:30 PDT"]
[Termination "Game drawn by agreement"]

1. d4 {[%clk 0:03:00.6]} 1... d5 {[%clk 0:02:59.7]} 2. Bf4 {[%clk 0:02:53.1]}
2... c5 {[%clk 0:02:59.8]} 3. e3 {[%clk 0:02:52.4]} 3... cxd4 {[%clk 0:02:59]}
4. exd4 {[%clk 0:02:51.2]} 4... Nc6 {[%clk 0:03:00.4]} 5. c3 {[%clk 0:02:51]}
5... Bf5 {[%clk 0:03:01.7]} 6. Nf3 {[%clk 0:02:39.8]} 6... e6 {[%clk 0:03:01.7]}
7. Bd3 {[%clk 0:02:38.8]} 7... Nge7 {[%clk 0:02:51.6]} 8. O-O {[%clk 0:02:38.7]}
8... Ng6 {[%clk 0:02:49.3]} 9. Bg3 {[%clk 0:02:31]} 9... Bxd3 {[%clk 0:02:46.9]}
10. Qxd3 {[%clk 0:02:32.1]} 10... Bd6 {[%clk 0:02:48.5]} 11. Nbd2 {[%clk
0:02:33]} 11... O-O {[%clk 0:02:49.4]} 12. a4 {[%clk 0:02:33.9]} 12... a5 {[%clk
0:02:42.3]} 13. Qb5 {[%clk 0:02:31.8]} 13... Qc7 {[%clk 0:02:37.2]} 14. Nb3
{[%clk 0:02:27.8]} 14... Bxg3 {[%clk 0:02:25]} 15. hxg3 {[%clk 0:02:27.2]} 15...
Ra6 {[%clk 0:02:26.7]} 16. Nc5 {[%clk 0:02:19.4]} 16... Rb6 {[%clk 0:02:18.2]}
17. Qe2 {[%clk 0:02:18.5]} 17... Nb8 {[%clk 0:02:19.8]} 18. Ne1 {[%clk
0:01:51.6]} 18... e5 {[%clk 0:02:12.4]} 19. Rb1 {[%clk 0:01:15.1]} 19... Nc6
{[%clk 0:02:02]} 20. dxe5 {[%clk 0:01:11.8]} 20... Ncxe5 {[%clk 0:02:03.4]} 21.
Ned3 {[%clk 0:01:13]} 21... Nc4 {[%clk 0:02:03.2]} 22. b3 {[%clk 0:01:11.2]}
22... Nd6 {[%clk 0:02:03.1]} 23. Rbc1 {[%clk 0:01:10.4]} 23... Rc6 {[%clk
0:02:01.4]} 24. b4 {[%clk 0:01:09.2]} 24... b6 {[%clk 0:01:57.2]} 25. Nb3 {[%clk
0:01:03.8]} 25... Rxc3 {[%clk 0:01:53.1]} 26. Qd2 {[%clk 0:00:52.7]} 26... Rc8
{[%clk 0:01:39.9]} 27. Nd4 {[%clk 0:00:40.3]} 27... axb4 {[%clk 0:01:36.2]} 28.
Rb1 {[%clk 0:00:31.6]} 28... Ne4 {[%clk 0:01:29.5]} 29. Qd1 {[%clk 0:00:32.8]}
29... Qc4 {[%clk 0:01:03.1]} 30. Nxb4 {[%clk 0:00:33.9]} 30... Ne5 {[%clk
0:00:59.7]} 31. Nbc2 {[%clk 0:00:31.8]} 31... Rd3 {[%clk 0:00:56.2]} 32. Qh5
{[%clk 0:00:24.2]} 32... f6 {[%clk 0:00:49.8]} 33. Qf5 {[%clk 0:00:20.8]} 33...
Re8 {[%clk 0:00:42.6]} 34. Rxb6 {[%clk 0:00:21.8]} 34... Rxd4 {[%clk 0:00:34.3]}
35. Nxd4 {[%clk 0:00:22.7]} 35... Qxd4 {[%clk 0:00:30]} 36. Re6 {[%clk
0:00:21.6]} 36... Rf8 {[%clk 0:00:27]} 37. Qf4 {[%clk 0:00:21.7]} 37... Qxa4
{[%clk 0:00:20.4]} 38. Rc1 {[%clk 0:00:22.1]} 38... Qd7 {[%clk 0:00:20.8]} 39.
Ra6 {[%clk 0:00:21.8]} 39... Nd3 {[%clk 0:00:22]} 40. Rc7 {[%clk 0:00:17.6]}
40... Qb5 {[%clk 0:00:13.4]} 41. Qg4 {[%clk 0:00:18.9]} 41... Qb1+ {[%clk
0:00:13.8]} 42. Kh2 {[%clk 0:00:20.3]} 42... Qh1+ {[%clk 0:00:15.4]} 43. Kxh1
{[%clk 0:00:21.7]} 43... Ndxf2+ {[%clk 0:00:16.3]} 44. Kg1 {[%clk 0:00:23.1]}
44... Nxg4 {[%clk 0:00:17.1]} 45. Raa7 {[%clk 0:00:25]} 45... Rb8 {[%clk
0:00:11.3]} 46. Rxg7+ {[%clk 0:00:25.7]} 46... Kf8 {[%clk 0:00:12.8]} 47. Raf7+
{[%clk 0:00:24.9]} 47... Ke8 {[%clk 0:00:13.9]} 48. Re7+ {[%clk 0:00:26.2]}
48... Kd8 {[%clk 0:00:13]} 49. Rd7+ {[%clk 0:00:27.5]} 49... Kc8 {[%clk
0:00:14.6]} 50. Rc7+ {[%clk 0:00:28.5]} 50... Kd8 {[%clk 0:00:16.3]} 51. Rcd7+
{[%clk 0:00:29.1]} 51... Ke8 {[%clk 0:00:17.9]} 52. Rde7+ {[%clk 0:00:30.4]}
52... Kf8 {[%clk 0:00:19]} 53. Ref7+ {[%clk 0:00:31.6]} 53... Ke8 {[%clk
0:00:20.6]} 54. Re7+ {[%clk 0:00:33.1]} 54... Kd8 {[%clk 0:00:21.8]} 1/2-1/2

[Event "*** Titled Tuesday Blitz"]
[Site "Chess.com"]
[Date "2019.05.07"]
[Round "9"]
[White "Vusatiuk_Vladimir"]
[Black "TristanCalistri"]
[Result "1-0"]
[WhiteElo "2208"]
[BlackElo "2183"]
[TimeControl "180+2"]
[EndTime "15:07:40 PDT"]
[Termination "Vusatiuk_Vladimir won by resignation"]

1. e4 {[%clk 0:02:59.2]} 1... e5 {[%clk 0:03:00.4]} 2. Nf3 {[%clk 0:02:59.6]}
2... d6 {[%clk 0:03:01.3]} 3. Nc3 {[%clk 0:02:59.3]} 3... Nf6 {[%clk 0:03:00.4]}
4. d4 {[%clk 0:03:00.7]} 4... exd4 {[%clk 0:03:01.2]} 5. Nxd4 {[%clk 0:02:59.3]}
5... Be7 {[%clk 0:03:03.1]} 6. Bc4 {[%clk 0:03:00.2]} 6... O-O {[%clk 0:03:04]}
7. f3 {[%clk 0:02:58.6]} 7... Re8 {[%clk 0:03:04.4]} 8. Be3 {[%clk 0:02:59.8]}
8... Bf8 {[%clk 0:03:04.6]} 9. Qd2 {[%clk 0:02:59.6]} 9... Nbd7 {[%clk
0:03:03.9]} 10. O-O-O {[%clk 0:02:58.7]} 10... c6 {[%clk 0:02:22.5]} 11. Bb3
{[%clk 0:02:40.8]} 11... Nc5 {[%clk 0:02:20.1]} 12. g4 {[%clk 0:02:23.8]} 12...
d5 {[%clk 0:02:08.3]} 13. exd5 {[%clk 0:02:08.3]} 13... Nxb3+ {[%clk 0:02:04.9]}
14. Nxb3 {[%clk 0:02:06.6]} 14... Nxd5 {[%clk 0:02:05.7]} 15. Nxd5 {[%clk
0:02:07]} 15... cxd5 {[%clk 0:02:05.9]} 16. Bg5 {[%clk 0:01:57.4]} 16... Qb6
{[%clk 0:01:59.2]} 17. Qxd5 {[%clk 0:01:50.1]} 17... a5 {[%clk 0:01:57.8]} 18.
Qd4 {[%clk 0:01:39.7]} 18... Qg6 {[%clk 0:01:45.6]} 19. Bd2 {[%clk 0:01:30.1]}
19... a4 {[%clk 0:01:45.4]} 20. Nc5 {[%clk 0:01:27.7]} 20... a3 {[%clk
0:01:41.9]} 21. b3 {[%clk 0:01:21.9]} 21... b6 {[%clk 0:01:33.1]} 22. Ne4 {[%clk
0:01:17.5]} 22... Bb7 {[%clk 0:01:33.3]} 23. Rhe1 {[%clk 0:01:12.7]} 23... Rad8
{[%clk 0:01:27]} 24. Qa4 {[%clk 0:01:08]} 24... Bxe4 {[%clk 0:01:24.4]} 25. Rxe4
{[%clk 0:01:07.2]} 25... Qf6 {[%clk 0:01:17.3]} 26. c3 {[%clk 0:00:47.7]} 26...
Ra8 {[%clk 0:00:28.5]} 27. Qxe8 {[%clk 0:00:28.7]} 27... Rxe8 {[%clk 0:00:28.6]}
28. Rxe8 {[%clk 0:00:30.6]} 28... Qxf3 {[%clk 0:00:24.2]} 29. Be1 {[%clk
0:00:17]} 29... Qg2 {[%clk 0:00:16.4]} 30. Rd2 {[%clk 0:00:14.8]} 30... Qg1
{[%clk 0:00:14.6]} 31. Rdd8 {[%clk 0:00:12.8]} 31... h6 {[%clk 0:00:16.1]} 32.
Rxf8+ {[%clk 0:00:13.4]} 32... Kh7 {[%clk 0:00:18]} 33. Rfe8 {[%clk 0:00:15]}
33... Qxg4 {[%clk 0:00:16.5]} 34. c4 {[%clk 0:00:11.2]} 34... Qg2 {[%clk
0:00:13.3]} 35. Rd2 {[%clk 0:00:10.6]} 35... Qg5 {[%clk 0:00:12.3]} 36. Kc2
{[%clk 0:00:08.9]} 36... Qf6 {[%clk 0:00:12.8]} 37. Ree2 {[%clk 0:00:05.1]}
37... Qb2+ {[%clk 0:00:12.7]} 38. Kd3 {[%clk 0:00:06.6]} 38... Qf6 {[%clk
0:00:13.9]} 39. Bg3 {[%clk 0:00:07]} 39... h5 {[%clk 0:00:14]} 40. Rf2 {[%clk
0:00:07.3]} 40... Qg6+ {[%clk 0:00:13.3]} 41. Kc3 {[%clk 0:00:08.1]} 41... f6
{[%clk 0:00:12.4]} 42. Kb4 {[%clk 0:00:08.9]} 42... Qf7 {[%clk 0:00:10.6]} 43.
Kxa3 {[%clk 0:00:09.5]} 43... Qa7+ {[%clk 0:00:10.7]} 44. Kb2 {[%clk 0:00:10.2]}
44... Qa5 {[%clk 0:00:10.6]} 45. Rd5 {[%clk 0:00:09.9]} 45... Qe1 {[%clk
0:00:09.5]} 46. Rxh5+ {[%clk 0:00:09.5]} 46... Kg6 {[%clk 0:00:10.7]} 47. Rxf6+
{[%clk 0:00:09.4]} 1-0

[Event "*** Titled Tuesday Blitz"]
[Site "Chess.com"]
[Date "2019.05.07"]
[Round "9"]
[White "Thjop"]
[Black "Arystanner"]
[Result "0-1"]
[WhiteElo "2568"]
[BlackElo "2762"]
[TimeControl "180+2"]
[EndTime "15:07:47 PDT"]
[Termination "Arystanner won by resignation"]

1. e4 {[%clk 0:03:01.9]} 1... e5 {[%clk 0:03:00.8]} 2. Nf3 {[%clk 0:03:00.2]}
2... Nc6 {[%clk 0:03:02]} 3. Bb5 {[%clk 0:03:01.1]} 3... a6 {[%clk 0:03:03.3]}
4. Ba4 {[%clk 0:03:02.3]} 4... Nf6 {[%clk 0:03:04.4]} 5. O-O {[%clk 0:03:03.8]}
5... Be7 {[%clk 0:03:05.8]} 6. d3 {[%clk 0:03:02.8]} 6... b5 {[%clk 0:03:02.6]}
7. Bb3 {[%clk 0:03:03.4]} 7... O-O {[%clk 0:03:04.3]} 8. Nc3 {[%clk 0:03:03.9]}
8... d6 {[%clk 0:03:04.3]} 9. a3 {[%clk 0:03:04.7]} 9... Bg4 {[%clk 0:03:03.8]}
10. Be3 {[%clk 0:03:05.4]} 10... Nd4 {[%clk 0:03:05.4]} 11. Bxd4 {[%clk
0:03:05]} 11... exd4 {[%clk 0:03:07.3]} 12. Nd5 {[%clk 0:03:05.4]} 12... Nd7
{[%clk 0:03:08.9]} 13. h3 {[%clk 0:03:05.5]} 13... Bxf3 {[%clk 0:03:10.4]} 14.
Qxf3 {[%clk 0:03:07]} 14... c6 {[%clk 0:03:12]} 15. Nf4 {[%clk 0:03:04.1]} 15...
a5 {[%clk 0:03:02.7]} 16. a4 {[%clk 0:02:47.3]} 16... bxa4 {[%clk 0:02:57.9]}
17. Bxa4 {[%clk 0:02:43.3]} 17... Rb8 {[%clk 0:02:51.3]} 18. Ra2 {[%clk
0:02:29.6]} 18... Rb6 {[%clk 0:02:48.6]} 19. Bb3 {[%clk 0:02:19.6]} 19... Nc5
{[%clk 0:02:33]} 20. Bc4 {[%clk 0:02:18.7]} 20... a4 {[%clk 0:02:34.3]} 21. Ne2
{[%clk 0:01:59.3]} 21... Bf6 {[%clk 0:02:21.8]} 22. c3 {[%clk 0:02:00.2]} 22...
dxc3 {[%clk 0:02:18]} 23. bxc3 {[%clk 0:01:59.9]} 23... Re8 {[%clk 0:02:15.1]}
24. Rc1 {[%clk 0:01:50.1]} 24... Qb8 {[%clk 0:02:04]} 25. g3 {[%clk 0:01:28.8]}
25... Rb1 {[%clk 0:02:02.1]} 26. Rxb1 {[%clk 0:01:27.9]} 26... Qxb1+ {[%clk
0:02:03.5]} 27. Kg2 {[%clk 0:01:28.7]} 27... Nb3 {[%clk 0:01:59.5]} 28. Rxa4
{[%clk 0:01:09.7]} 28... Nd2 {[%clk 0:01:47.2]} 29. Qe3 {[%clk 0:01:10.3]} 29...
Qf1+ {[%clk 0:01:43.7]} 30. Kh2 {[%clk 0:01:10.2]} 30... Qd1 {[%clk 0:01:42.4]}
31. Qa7 {[%clk 0:00:49.5]} 31... Nxc4 {[%clk 0:01:19.6]} 32. Rxc4 {[%clk
0:00:45.6]} 32... Qxe2 {[%clk 0:01:20.3]} 33. Rxc6 {[%clk 0:00:46.5]} 33... Qxd3
{[%clk 0:01:16.8]} 34. Qd7 {[%clk 0:00:44]} 34... Rf8 {[%clk 0:00:52]} 35. Qxd6
{[%clk 0:00:31.7]} 35... Qxe4 {[%clk 0:00:48.6]} 36. Rc7 {[%clk 0:00:24.4]}
36... Be5 {[%clk 0:00:36.8]} 37. Re7 {[%clk 0:00:25.2]} 37... Bxd6 {[%clk
0:00:33.7]} 38. Rxe4 {[%clk 0:00:27.1]} 38... g6 {[%clk 0:00:34.6]} 39. Kg2
{[%clk 0:00:26.1]} 39... Rc8 {[%clk 0:00:35.4]} 40. c4 {[%clk 0:00:27]} 40... f5
{[%clk 0:00:34.2]} 41. Rd4 {[%clk 0:00:27.8]} 41... Bc5 {[%clk 0:00:35.3]} 42.
Rd2 {[%clk 0:00:27.2]} 42... Kf7 {[%clk 0:00:34.3]} 43. h4 {[%clk 0:00:28.1]}
43... Ke6 {[%clk 0:00:35.5]} 44. Re2+ {[%clk 0:00:26.2]} 44... Kd7 {[%clk
0:00:33.6]} 45. Rd2+ {[%clk 0:00:26.8]} 45... Bd6 {[%clk 0:00:34]} 46. Rc2
{[%clk 0:00:24.9]} 46... Re8 {[%clk 0:00:32.8]} 47. h5 {[%clk 0:00:23.8]} 47...
Kc6 {[%clk 0:00:33.2]} 48. hxg6 {[%clk 0:00:21.7]} 48... hxg6 {[%clk 0:00:35.1]}
49. Ra2 {[%clk 0:00:20.7]} 49... Kc5 {[%clk 0:00:34.8]} 50. Ra6 {[%clk
0:00:21.4]} 50... Re6 {[%clk 0:00:35.1]} 51. f4 {[%clk 0:00:19.6]} 51... Kxc4
{[%clk 0:00:35.5]} 52. Kf3 {[%clk 0:00:21]} 52... Kb5 {[%clk 0:00:36.1]} 53. Ra8
{[%clk 0:00:18.4]} 53... Bc5 {[%clk 0:00:37]} 54. Rg8 {[%clk 0:00:17.4]} 54...
Kc4 {[%clk 0:00:37.1]} 55. g4 {[%clk 0:00:17.9]} 55... Kd3 {[%clk 0:00:30]} 56.
gxf5 {[%clk 0:00:17.1]} 56... gxf5 {[%clk 0:00:31.9]} 57. Rf8 {[%clk 0:00:15.6]}
57... Bxf8 {[%clk 0:00:31.9]} 0-1